bitfinex-derivatives/quotes_ETHF0:USTF0_20240829
["timestamp","ask_amount","ask_price","bid_price","bid_amount"]
[1724950940518,0.00056738,2572.0,2571.9,17.34738989]
[1724950940825,0.00056738,2572.0,2571.9,20.26270029]
[1724950941025,0.00056738,2572.0,2571.9,19.24780836]
[1724950941520,3.59636,2572.7,2572.6,0.38857]
[1724950942925,0.38861,2572.4,2572.3,0.38861]
[1724950943127,0.38859,2572.6,2572.5,0.38857]
[1724950943324,3.59636,2572.7,2572.6,0.38857]
[1724950943829,3.2078,2572.7,2572.6,0.38857]
[1724950944632,3.59636,2572.7,2572.6,0.38857]
[1724950945428,3.2078,2572.7,2572.6,0.38857]
[1724950945737,3.59636,2572.7,2572.6,0.38857]
[1724950946038,3.2078,2572.7,2572.6,0.38857]
[1724950946633,3.2078,2572.7,2572.6,1.36]
[1724950947231,3.2078,2572.7,2572.6,46.0472]
[1724950947930,3.2078,2572.7,2572.6,41.18857]
[1724950948944,1.1561,2572.8,2572.7,0.38856]
[1724950950932,1.54464,2572.8,2572.7,0.38856]
[1724950951136,2.12746,2572.8,2572.4,4.8323]
[1724950951340,0.38859,2572.5,2572.4,0.3886]
[1724950951538,0.38859,2572.5,2572.1,0.38863]
[1724950951539,3.2078,2572.5,2572.1,0.38863]
[1724950951742,0.38863,2572.3,2572.2,0.38863]
[1724950952043,0.38863,2572.3,2571.9,0.97168]
[1724950952044,0.38867,2572.0,2571.9,40.8]
[1724950952244,4.92186031,2572.3,2571.9,0.38867]
[1724950952245,0.38865,2572.1,2571.9,0.38867]
[1724950952443,0.38867,2572.0,2571.8,1.47338]
[1724950952633,0.38865,2572.1,2571.9,0.38867]
[1724950952938,4.77464,2572.2,2572.0,0.38866]
[1724950953141,1.1782,2572.2,2572.1,3.74865]
[1724950953542,1.124,2572.4,2572.3,0.38862]
[1724950953739,1.124,2572.4,2572.3,3.74862]
[1724950954539,1.124,2572.4,2572.3,0.38862]
[1724950954738,1.5126,2572.4,2572.2,0.38862]
[1724950955050,1.124,2572.4,2572.3,0.38862]
[1724950956438,1.1782,2572.6,2572.5,0.38859]
[1724950956634,2.64217,2572.6,2572.4,0.38859]
[1724950956838,2.2536,2572.6,2572.5,0.38859]
[1724950958141,3.892,2572.9,2572.7,0.38854]
[1724950958341,1.1653,2572.8,2572.7,0.38854]
[1724950958648,5.56677942,2572.8,2572.7,0.38854]
[1724950963460,1.1653,2572.8,2572.7,0.38854]
[1724950965547,1.55384,2572.8,2572.7,0.38854]
[1724950965752,1.1653,2572.8,2572.7,0.38854]
[1724950965954,1.55384,2572.8,2572.7,0.38854]
[1724950966755,1.1653,2572.8,2572.7,0.38854]
[1724950967046,5.0525,2572.8,2572.7,0.38854]
[1724950968147,1.1653,2572.8,2572.7,0.38854]
[1724950969254,1.1653,2572.8,2572.7,0.9958368]
[1724950969553,5.0525,2572.8,2572.7,0.9958368]
[1724950969746,1.1653,2572.8,2572.7,0.9958368]
[1724950970147,1.1653,2572.8,2572.7,5.3272368]
[1724950970447,1.1653,2572.8,2572.7,6.4366368]
[1724950971054,5.0444,2572.9,2572.8,0.38854]
[1724950971250,6.1486,2572.9,2572.8,0.9958368]
[1724950972052,14.89860034,2572.9,2572.8,0.38854]
[1724950972356,14.51007034,2572.9,2572.5,1.01420399]
[1724950972659,14.51007034,2572.9,2572.7,0.38856]
[1724950972660,1.0896,2572.8,2572.7,0.38856]
[1724950973156,1.0896,2572.8,2572.7,0.99587773]
[1724950974556,6.1486,2572.9,2572.7,0.99587773]
[1724950974848,6.1486,2572.9,2572.8,0.60731773]
[1724950975245,14.63725252,2572.9,2572.7,0.38856]
[1724950975449,10.75085252,2572.9,2572.7,0.38856]
[1724950975761,10.75085252,2572.9,2572.8,0.60729351]
[1724950976060,10.75085252,2572.9,2572.8,1.21458268]
[1724950976252,14.63725252,2572.9,2572.8,1.21458268]
[1724950976745,14.63725252,2572.9,2572.8,0.60729351]
[1724950977151,14.63725252,2572.9,2572.8,1.21462805]
[1724950977348,0.38857,2572.6,2572.5,1.01420399]
[1724950977549,0.38857,2572.6,2572.5,0.60735658]
[1724950977550,4.5678,2572.6,2572.5,0.60735658]
[1724950977854,0.38862,2572.3,2572.1,1.40284399]
[1724950978063,1.177,2572.2,2572.1,1.40284399]
[1724950978363,5.67460736,2572.2,2572.1,1.40284399]
[1724950978661,1.177,2572.2,2572.1,1.40284399]
[1724950979559,1.177,2572.2,2572.1,1.01420399]
[1724950979954,1.177,2572.2,2572.1,1.40285399]
[1724950980659,1.177,2572.2,2572.1,6.70658548]
[1724950980853,1.1488,2572.6,2572.1,7.96973747]
[1724950981060,0.38856,2572.7,2572.4,4.37777627]
[1724950981061,1.108,2572.7,2572.4,4.37777627]
[1724950981264,1.108,2572.7,2572.6,0.38857]
[1724950981657,4.3003,2572.8,2572.7,0.38856]
[1724950981958,4.3003,2572.8,2572.6,1.40633627]
[1724950982164,4.68885,2572.8,2572.6,1.40633627]
[1724950982853,0.38857,2572.6,2572.5,1.01777627]
[1724950983157,0.38857,2572.6,2572.4,1.01777627]
[1724950983158,0.38859,2572.5,2572.4,1.01777627]
[1724950983566,8.48155048,2572.5,2572.4,1.01777627]
[1724950983861,4.59435048,2572.5,2572.4,1.01777627]
[1724950984056,4.59435048,2572.5,2572.4,1.40637627]
[1724950984057,8.09296048,2572.5,2572.4,1.40637627]
[1724950984363,5.27167,2572.8,2572.5,0.38858]
[1724950984364,0.38856,2572.7,2572.5,0.38858]
[1724950984568,0.38856,2572.7,2572.5,1.40663196]
[1724950985051,0.38856,2572.7,2572.5,0.38858]
[1724950985251,4.68885,2572.8,2572.5,1.01805196]
[1724950985652,4.3003,2572.8,2572.7,0.38856]
[1724950986064,4.3003,2572.8,2572.6,1.01805196]
[1724950986065,4.68884,2572.8,2572.6,2.59261196]
[1724950986558,4.3003,2572.8,2572.6,2.20405196]
[1724950986763,4.3003,2572.8,2572.7,0.38856]
[1724950987057,4.68884,2572.8,2572.6,2.59261196]
[1724950987265,4.3003,2572.8,2572.6,2.20405196]
[1724950987451,4.68885,2572.8,2572.6,1.57457]
[1724950987657,4.68885,2572.8,2572.6,2.59262196]
[1724950988264,4.68885,2572.8,2572.7,0.38856]
[1724950988265,4.3003,2572.8,2572.7,0.38856]
[1724950990565,4.3003,2572.8,2572.7,1.40661196]
[1724950991867,3.2078,2572.8,2572.7,1.40661196]
[1724950992174,3.892,2572.9,2572.8,0.38854]
[1724950992466,3.892,2572.9,2572.8,2.33177612]
[1724950992659,3.892,2572.9,2572.8,3.85868014]
[1724950992860,3.892,2572.9,2572.8,2.33170974]
[1724950993056,3.892,2572.9,2572.8,3.85858081]
[1724950993262,3.892,2572.9,2572.8,3.30306974]
[1724950993665,3.892,2572.9,2572.8,2.33170974]
[1724950993867,3.892,2572.9,2572.8,4.82977434]
[1724950994159,3.892,2572.9,2572.8,2.33170974]
[1724950994761,3.892,2572.9,2572.8,3.85827405]
[1724950996371,3.892,2572.9,2572.8,3.85827681]
[1724950999662,3.892,2572.9,2572.8,2.3317125]
[1724951000271,3.892,2572.9,2572.8,3.3030725]
[1724951001058,3.892,2572.9,2572.8,12.21766]
[1724951001262,3.892,2572.9,2572.8,20.06936473]
[1724951001456,3.892,2572.9,2572.8,18.04684441]
[1724951001664,3.892,2572.9,2572.8,59.23556215]
[1724951001868,3.892,2572.9,2572.8,50.02468218]
[1724951003077,3.892,2572.9,2572.8,44.65820906]
[1724951003371,4.28053,2572.9,2572.8,3.46966906]
[1724951003574,0.38854,2572.8,2572.7,1.40622651]
[1724951003766,3.892,2572.9,2572.8,0.38854]
[1724951004069,3.892,2572.9,2572.8,1.40621651]
[1724951006265,7.0998,2572.9,2572.8,1.40621651]
[1724951007071,0.38854,2572.8,2572.7,1.01767651]
[1724951007271,0.97136,2572.8,2572.5,1.01767651]
[1724951007575,0.97136,2572.8,2572.4,1.52652928]
[1724951007576,3.59637,2572.6,2572.4,1.01767651]
[1724951007873,1.085,2572.5,2572.4,1.01767651]
[1724951008267,1.47359,2572.5,2572.4,1.01767651]
[1724951008484,1.47359,2572.5,2572.4,1.40627651]
[1724951008485,1.085,2572.5,2572.4,1.40627651]
[1724951009069,1.085,2572.5,2572.4,1.01767651]
[1724951009372,0.3886,2572.4,2572.2,1.40630651]
[1724951009674,5.85300247,2572.5,2572.3,0.38861]
[1724951009880,5.85300247,2572.5,2572.2,42.20629651]
[1724951010073,0.3886,2572.4,2572.2,42.20629651]
[1724951010379,5.85301247,2572.5,2572.2,42.20629651]
[1724951010777,5.85301247,2572.5,2572.3,0.38861]
[1724951010985,5.46441247,2572.5,2572.4,0.3886]
[1724951011277,5.46441247,2572.5,2572.4,4.76627651]
[1724951011278,4.37941247,2572.5,2572.4,4.76627651]
[1724951011476,8.2728,2572.9,2572.7,0.38855]
[1724951011777,4.22986088,2572.8,2572.7,3.74855]
[1724951012479,4.22986088,2572.8,2572.7,4.76591698]
[1724951012976,4.22986088,2572.8,2572.7,3.74856]
[1724951013474,4.22986088,2572.8,2572.7,4.76592698]
[1724951013675,4.22986088,2572.8,2572.7,3.74856]
[1724951014177,4.22986088,2572.8,2572.6,1.40592698]
[1724951014579,4.22986088,2572.8,2572.6,1.01736698]
[1724951014883,1.0951,2572.7,2572.5,1.01736698]
[1724951015073,4.61841088,2572.8,2572.6,0.38857]
[1724951015269,4.27575,2572.8,2572.6,0.38857]
[1724951015577,4.28340933,2572.7,2572.6,1.40593698]
[1724951015976,4.28340933,2572.8,2572.7,0.38855]
[1724951016282,8.66133,2572.9,2572.7,0.38855]
[1724951016577,4.06603751,2572.8,2572.7,0.38855]
[1724951016779,7.95323751,2572.8,2572.7,0.38855]
[1724951018181,8.34177751,2572.8,2572.6,0.38856]
[1724951018369,4.06603751,2572.8,2572.7,0.38856]
[1724951018576,4.45458751,2572.8,2572.6,0.38856]
[1724951018775,5.03740751,2572.8,2572.5,1.01736698]
[1724951018973,0.38857,2572.6,2572.4,1.40596698]
[1724951019180,1.1957,2572.5,2572.4,1.40596698]
[1724951019371,5.39461564,2572.5,2572.4,1.40596698]
[1724951021474,5.39461564,2572.5,2572.4,1.01736698]
[1724951021475,5.78320564,2572.5,2572.4,1.01736698]
[1724951021677,5.39461564,2572.5,2572.4,1.40596698]
[1724951021885,4.19891564,2572.5,2572.4,3.34943939]
[1724951022080,4.19891564,2572.5,2572.4,1.40596698]
[1724951022472,8.08611564,2572.5,2572.3,2.54341745]
[1724951022681,1.1136,2572.4,2572.3,0.38862]
[1724951022883,5.84675591,2572.4,2572.2,41.18862]
[1724951023084,5.45815591,2572.4,2572.3,0.38862]
[1724951023283,5.84675591,2572.4,2572.2,40.8]
[1724951023496,5.45815591,2572.4,2572.3,0.38862]
[1724951023884,5.84675591,2572.4,2572.3,0.38862]
[1724951024189,5.84675591,2572.4,2572.1,1.1959]
[1724951024190,1.36022,2572.2,2572.1,1.01737402]
[1724951024487,0.38865,2572.1,2572.0,4.37737402]
[1724951024675,0.38865,2572.1,2572.0,3.36]
[1724951027189,7.83930524,2572.1,2572.0,3.36]
[1724951027384,9.02070524,2572.1,2572.0,3.36]
[1724951029995,0.38868,2571.9,2571.7,1.02320549]
[1724951030197,6.66797,2571.8,2571.7,0.00583147]
[1724951030382,6.66797,2571.8,2571.0,3.36]
[1724951030383,0.38878,2571.3,2571.0,3.36]
[1724951030695,0.38877,2571.3,2571.1,41.1888]
[1724951030889,4.20103949,2571.2,2571.1,41.1888]
[1724951031286,4.20103949,2571.2,2571.1,3.7488]
[1724951031485,0.00583147,2571.4,2571.3,0.38877]
[1724951031685,0.00583147,2571.4,2571.3,45.5207]
[1724951031885,0.00583147,2571.4,2571.3,49.4095]
[1724951032091,0.00583147,2571.4,2571.3,51.53347402]
[1724951032494,0.00583147,2571.4,2571.3,53.47756686]
[1724951032692,0.00148507,2571.4,2571.3,53.43212284]
[1724951032896,0.00148507,2571.4,2571.3,54.44739948]
[1724951033400,3.2078,2571.9,2571.8,0.38869]
[1724951034189,3.2078,2571.9,2571.8,1.49529]
[1724951034898,0.38867,2572.0,2571.8,1.49528]
[1724951035602,2.61086,2572.1,2571.9,0.38867]
[1724951036003,4.45505684,2572.0,2571.8,1.1066]
[1724951036203,4.45505684,2572.0,2571.9,0.38868]
[1724951037002,4.45505684,2572.0,2571.8,1.49528]
[1724951037311,4.45505684,2572.0,2571.9,0.38868]
[1724951037512,4.45505684,2572.0,2571.8,1.49528]
[1724951037908,4.45505684,2572.0,2571.9,0.38868]
[1724951038612,3.2078,2572.2,2571.9,8.60838]
[1724951038813,1.1079,2572.4,2572.2,0.38862]
[1724951039215,4.37265616,2572.3,2572.2,0.38862]
[1724951039608,1.1831,2572.6,2572.5,0.38859]
[1724951040221,1.1831,2572.6,2572.4,3.74859]
[1724951040414,1.1831,2572.6,2572.3,3.36583147]
[1724951040622,0.3886,2572.4,2572.3,0.00583147]
[1724951041017,8.78697171,2572.4,2572.3,0.00583147]
[1724951041220,8.39837171,2572.4,2572.3,0.00583147]
[1724951041624,4.51117171,2572.4,2572.3,0.00583147]
[1724951041930,8.39837171,2572.4,2572.3,0.00583147]
[1724951042127,8.78697171,2572.4,2572.3,0.00583147]
[1724951042331,8.39837171,2572.4,2572.3,0.00583147]
[1724951042521,8.78697171,2572.4,2572.3,0.00583147]
[1724951043022,9.75848171,2572.4,2572.3,0.00583147]
[1724951043326,8.78697171,2572.4,2572.3,0.00583147]
[1724951045622,9.75848171,2572.4,2572.3,0.00583147]
[1724951045929,0.38867,2572.0,2571.7,1.5005]
[1724951046124,2.2617,2571.9,2571.7,1.5005]
[1724951046325,6.3271474,2571.9,2571.7,1.5005]
[1724951046533,6.3271474,2571.9,2571.8,0.38869]
[1724951047126,10.2151474,2571.9,2571.8,0.38869]
[1724951047435,4.0654474,2571.9,2571.8,7.63669]
[1724951047728,3.21363147,2572.1,2572.0,0.38866]
[1724951047920,0.00583147,2572.1,2572.0,3.74866]
[1724951049035,0.00583147,2572.1,2572.0,4.84296]
[1724951049528,0.00583147,2572.1,2572.0,6.82971352]
[1724951049923,0.00583147,2572.1,2572.0,4.84296]
[1724951050122,0.00583147,2572.1,2572.0,6.82971352]
[1724951050828,0.00583147,2572.1,2572.0,5.85805352]
[1724951051232,0.00583147,2572.1,2572.0,7.80174518]
[1724951051928,0.00583147,2572.1,2572.0,8.77340518]
[1724951052133,0.00583147,2572.1,2572.0,8.77433]
[1724951052329,0.00583147,2572.1,2572.0,7.75831166]
[1724951052530,0.00583147,2572.1,2572.0,6.83078655]
[1724951052727,5.464,2572.4,2572.3,0.38862]
[1724951052728,3.2078,2572.4,2572.3,0.38862]
[1724951052922,3.2078,2572.4,2572.3,3.74862]
[1724951054038,3.2078,2572.4,2572.3,4.72017]
[1724951054423,3.2078,2572.4,2572.3,8.60737]
[1724951054636,3.2078,2572.4,2572.3,49.40737]
[1724951055534,1.0948,2572.8,2572.7,0.38856]
[1724951055740,1.0948,2572.8,2572.7,3.74856]
[1724951056130,1.0948,2572.8,2572.7,4.93816]
[1724951056828,1.0948,2572.8,2572.7,3.74856]
[1724951057745,5.42753,2572.9,2572.8,0.38854]
[1724951058037,6.53973,2572.9,2572.8,0.38854]
[1724951058342,6.1512,2572.9,2572.8,0.38854]
[1724951058636,6.1512,2572.9,2572.8,2.33126]
[1724951058637,3.8876536,2572.9,2572.8,2.33126]
[1724951058843,3.8876536,2572.9,2572.8,3.34725859]
[1724951059025,3.8876536,2572.9,2572.8,5.80031739]
[1724951059229,3.8876536,2572.9,2572.8,5.28982529]
[1724951059435,3.8876536,2572.9,2572.8,3.34681837]
[1724951059637,3.8876536,2572.9,2572.8,2.37545837]
[1724951059837,3.8876536,2572.9,2572.8,0.38854]
[1724951060042,3.8876536,2572.9,2572.7,4.37555837]
[1724951060043,3.8876536,2572.9,2572.7,0.38856]
[1724951060234,3.332,2572.8,2572.7,0.38856]
[1724951062539,3.332,2572.8,2572.5,5.56515837]
[1724951062540,3.72054,2572.8,2572.6,0.38856]
[1724951063240,3.332,2572.8,2572.7,0.38856]
[1724951063430,3.332,2572.8,2572.7,3.74856]
[1724951063633,2.2444,2572.8,2572.7,3.74856]
[1724951066545,3.8876536,2572.9,2572.8,0.38854]
[1724951066846,3.8876536,2572.9,2572.8,6.4002]
[1724951067048,3.8876536,2572.9,2572.8,8.56285837]
[1724951067251,3.8876536,2572.9,2572.8,11.01633781]
[1724951067447,3.8876536,2572.9,2572.8,8.56202484]
[1724951067744,3.8876536,2572.9,2572.8,10.50495946]
[1724951067942,3.8876536,2572.9,2572.8,9.49023462]
[1724951068152,3.8876536,2572.9,2572.8,11.01628509]
[1724951068536,3.8876536,2572.9,2572.8,17.98764509]
[1724951068738,1.1119,2573.5,2573.4,0.38845]
[1724951068941,1.1119,2573.5,2573.4,3.74845]
[1724951071144,1.5563,2573.8,2573.5,0.38842]
[1724951071351,1.1049,2573.7,2573.6,0.38842]
[1724951073256,1.1679,2573.8,2573.7,0.3884]
[1724951074151,1.1679,2573.8,2573.7,1.5076]
[1724951074843,3.2078,2573.9,2573.7,1.5076]
[1724951075050,0.97065,2574.7,2573.9,0.97091]
[1724951075242,0.38828,2574.6,2574.4,0.3883]
[1724951075646,8.65474178,2574.5,2574.3,0.38831]
[1724951076044,4.27229,2574.5,2574.3,0.38831]
[1724951076351,4.21232321,2574.4,2574.3,0.38831]
[1724951076757,8.48542321,2574.4,2574.2,3.75415147]
[1724951076947,8.48542321,2574.4,2574.2,3.36583147]
[1724951077148,1.1831,2574.3,2574.2,3.75416147]
[1724951077456,5.36335537,2574.3,2574.2,3.75416147]
[1724951079043,9.63646537,2574.3,2574.2,0.00583147]
[1724951083155,5.75166537,2574.3,2574.2,0.00583147]
[1724951084265,5.36335537,2574.3,2574.2,0.00583147]
[1724951084565,5.75166537,2574.3,2574.2,0.00583147]
[1724951086060,5.75166537,2574.3,2574.2,3.36583147]
[1724951086364,5.36335537,2574.3,2574.2,3.36583147]
[1724951086664,5.36335537,2574.3,2574.2,3.75416147]
[1724951087764,9.63646537,2574.3,2574.2,0.00583147]
[1724951087963,9.63646537,2574.3,2573.8,3.36]
[1724951087964,0.38837,2574.0,2573.8,0.38839]
[1724951088255,0.97084,2574.2,2573.8,0.38839]
[1724951088256,5.1827362,2573.9,2573.8,3.74839]
[1724951088665,0.38835,2574.1,2573.8,4.33098]
[1724951088666,4.0462362,2574.1,2573.8,4.33098]
[1724951088963,1.50436147,2574.2,2574.0,0.38836]
[1724951089154,4.0462362,2574.1,2574.0,0.38835]
[1724951089656,5.38916147,2574.2,2574.1,0.38834]
[1724951089657,1.11603147,2574.2,2574.1,0.38834]
[1724951090252,1.11603147,2574.2,2574.0,3.74835]
[1724951090863,1.50436147,2574.2,2574.0,3.74835]
[1724951091257,1.11603147,2574.2,2574.1,0.38834]
[1724951091662,1.11603147,2574.2,2574.0,3.74835]
[1724951091860,1.11603147,2574.2,2574.1,0.38834]
[1724951092055,1.11603147,2574.2,2574.1,1.47214]
[1724951092056,0.00583147,2574.2,2574.1,1.47214]
[1724951092365,0.00583147,2574.2,2574.1,3.80704]
[1724951092768,0.00583147,2574.2,2574.1,0.38834]
[1724951092960,0.00583147,2574.2,2574.0,3.74835]
[1724951093265,0.39417147,2574.2,2574.0,3.74835]
[1724951093465,0.00583147,2574.2,2574.1,0.38834]
[1724951093765,4.21304979,2574.2,2574.1,0.38834]
[1724951094064,0.38834,2574.1,2573.9,0.38837]
[1724951094265,5.73948979,2574.2,2573.9,0.38837]
[1724951094459,1.1135,2574.0,2573.9,0.38837]
[1724951094663,1.50186,2574.0,2573.8,3.74838]
[1724951094865,1.125,2573.9,2573.8,3.74838]
[1724951095363,0.00583147,2574.2,2574.1,0.38834]
[1724951095553,0.00583147,2574.2,2574.1,3.74834]
[1724951095962,0.38835,2574.1,2573.9,3.36]
[1724951096163,0.38835,2574.1,2573.9,3.74837]
[1724951096858,4.32697711,2574.2,2573.9,3.36]
[1724951097053,4.32697711,2574.2,2574.1,0.38834]
[1724951097255,4.32697711,2574.2,2574.1,3.74834]
[1724951097659,4.32697711,2574.2,2574.1,4.92874]
[1724951098270,4.32697711,2574.2,2574.1,8.81354]
[1724951098453,0.00583147,2574.2,2574.1,8.81354]
[1724951099065,3.2078,2574.7,2574.6,0.38827]
[1724951099366,3.59605,2574.7,2574.6,3.36]
[1724951099561,3.59605,2574.7,2574.6,7.244]
[1724951100055,3.2078,2574.7,2574.6,7.63227]
[1724951100256,3.2078,2574.7,2574.6,7.244]
[1724951100761,0.38825,2574.8,2574.6,7.244]
[1724951100965,0.38824,2574.8,2574.6,0.38827]
[1724951101359,0.38824,2574.8,2574.4,3.36]
[1724951101360,0.38828,2574.6,2574.4,3.36]
[1724951101557,0.38828,2574.6,2574.4,0.3883]
[1724951101761,5.88310325,2574.7,2574.5,0.38828]
[1724951102063,0.38827,2574.6,2574.4,3.74829]
[1724951102361,5.88310325,2574.7,2574.4,3.74829]
[1724951102566,4.32744325,2574.7,2574.4,3.36]
[1724951102765,3.2078,2574.8,2574.4,3.36]
[1724951103068,0.38828,2574.6,2574.4,3.7483]
[1724951103460,0.38828,2574.6,2574.2,3.3991]
[1724951103461,0.38833,2574.3,2574.0,0.38835]
[1724951103658,4.281259,2574.7,2573.9,1.1008]
[1724951103659,1.1814,2574.2,2573.9,1.1008]
[1724951103866,0.38836,2574.0,2573.8,1.1889]
[1724951104168,0.38837,2573.9,2573.8,1.1889]
[1724951104757,4.23785777,2573.9,2573.8,1.1889]
[1724951104962,4.23785777,2573.9,2573.8,1.57729]
[1724951105560,4.32543779,2574.0,2573.9,0.38837]
[1724951105867,0.38836,2574.0,2573.8,1.57728]
[1724951106070,0.38837,2573.9,2573.7,3.75423147]
[1724951106363,4.3935,2574.1,2573.7,0.00583147]
[1724951106364,0.38839,2573.8,2573.7,0.00583147]
[1724951106561,4.45162418,2573.8,2573.7,0.00583147]
[1724951106765,0.38837,2573.9,2573.7,0.39423147]
[1724951106969,0.38837,2573.9,2573.7,0.00583147]
[1724951107270,4.45160418,2573.9,2573.7,0.39423147]
[1724951107463,4.45160418,2573.9,2573.7,0.00583147]
[1724951107670,4.45160418,2573.9,2573.7,0.39423147]
[1724951107969,4.06323418,2573.9,2573.8,0.38839]
[1724951108162,4.3935,2574.1,2574.0,0.38836]
[1724951108771,1.1857,2574.1,2574.0,1.51656]
[1724951109360,0.38837,2574.0,2573.9,0.38837]
[1724951109680,0.38837,2574.0,2573.8,0.38838]
[1724951110563,0.38838,2573.9,2573.7,3.75423147]
[1724951110768,0.38839,2573.8,2573.7,0.00583147]
[1724951111070,4.56717,2573.8,2573.7,0.00583147]
[1724951111272,12.54855895,2573.8,2573.7,0.00583147]
[1724951111658,8.66295895,2573.8,2573.7,0.00583147]
[1724951111972,1.1857,2574.1,2573.9,0.38837]
[1724951112170,1.1857,2574.1,2573.9,3.36]
[1724951112372,1.1857,2574.1,2573.9,3.74837]
[1724951112763,1.1857,2574.1,2574.0,0.38836]
[1724951112967,3.2078,2574.4,2574.2,0.38833]
[1724951113171,3.2078,2574.4,2574.1,3.36]
[1724951113374,3.2078,2574.4,2574.3,0.38831]
[1724951113561,3.2078,2574.4,2574.2,2.51498183]
[1724951113763,3.2078,2574.4,2574.3,1.1489]
[1724951114566,3.2078,2574.4,2574.3,2.55147183]
[1724951114767,3.2078,2574.4,2574.3,3.70947183]
[1724951114969,3.2078,2574.4,2574.3,10.95427183]
[1724951115270,3.2078,2574.7,2574.3,11.49375712]
[1724951115473,3.2078,2574.7,2574.6,3.36]
[1724951115665,3.2078,2574.7,2574.5,1.01640316]
[1724951115862,4.32592941,2574.6,2574.5,1.40468316]
[1724951116065,7.53372941,2574.7,2574.5,1.40468316]
[1724951116264,3.2078,2574.7,2574.5,1.01640316]
[1724951116468,4.06157288,2574.6,2574.5,1.01640316]
[1724951116670,6.38457288,2574.6,2574.3,1.01640316]
[1724951116873,3.2078,2574.4,2574.2,1.01640316]
[1724951117068,1.58761,2574.3,2574.0,1.01640316]
[1724951117263,5.26087288,2574.3,2574.0,1.01640316]
[1724951117470,2.323,2574.6,2574.1,6.31858999]
[1724951117678,2.323,2574.6,2574.2,1.01640316]
[1724951117859,4.47667042,2574.5,2574.2,2.15500316]
[1724951118066,4.47667042,2574.5,2574.4,1.01640316]
[1724951118759,4.47667042,2574.5,2574.4,1.40470316]
[1724951118965,3.2078,2574.7,2574.4,8.83579191]
[1724951119163,3.2078,2574.7,2574.5,1.40515213]
[1724951119367,3.2078,2574.7,2574.5,1.01687213]
[1724951119878,3.2078,2574.7,2574.4,3.22467213]
[1724951120067,4.46721723,2574.6,2574.4,3.22467213]
[1724951120266,4.46721723,2574.6,2574.4,1.01687213]
[1724951120774,4.85548723,2574.6,2574.4,1.01687213]
[1724951120973,2.2418,2574.5,2574.4,1.01687213]
[1724951121477,2.2418,2574.5,2574.3,2.2635]
[1724951121478,2.2418,2574.5,2574.3,3.28037213]
[1724951121666,6.50390002,2574.5,2574.3,3.28037213]
[1724951121873,6.50390002,2574.5,2574.4,1.01687213]
[1724951122370,6.50390002,2574.5,2574.3,3.28037213]
[1724951122675,6.50390002,2574.5,2574.4,2.95886933]
[1724951122676,4.26210002,2574.5,2574.4,2.95886933]
[1724951122978,6.85535249,2574.6,2574.4,1.01687213]
[1724951123480,2.57597,2574.6,2574.4,1.01687213]
[1724951123777,4.4471533,2574.5,2574.3,2.17267213]
[1724951124078,4.4471533,2574.5,2574.4,1.01687213]
[1724951125978,4.68626,2574.7,2574.4,1.40517213]
[1724951126175,0.38828,2574.6,2574.4,4.37687213]
[1724951126370,4.81590115,2574.6,2574.4,4.37687213]
[1724951126564,4.42762115,2574.6,2574.4,4.37687213]
[1724951126769,4.42762115,2574.6,2574.4,4.76517213]
[1724951126975,4.42762115,2574.6,2574.5,1.1023]
[1724951127877,4.298,2574.7,2574.5,1.1023]
[1724951128071,4.68625,2574.7,2574.5,1.1023]
[1724951128471,4.298,2574.7,2574.5,1.49058]
[1724951128875,4.68625,2574.7,2574.5,1.1023]
[1724951129073,0.38821,2575.0,2574.5,1.1023]
[1724951129271,0.38824,2574.8,2574.5,2.50744213]
[1724951129568,4.25810926,2574.9,2574.6,3.36]
[1724951129879,3.59601,2575.1,2574.7,1.01687213]
[1724951130082,0.38821,2575.0,2574.7,1.40511213]
[1724951130381,4.25810926,2575.0,2574.8,0.38823]
[1724951130582,3.2078,2575.1,2574.9,0.38822]
[1724951131174,3.596,2575.1,2574.9,1.1976]
[1724951132681,0.38821,2575.0,2574.7,1.40511213]
[1724951132889,5.10359453,2575.0,2574.6,1.1976]
[1724951133076,2.2463,2574.9,2574.6,1.58586]
[1724951133278,1.53594,2574.8,2574.6,1.1976]
[1724951133578,6.02925112,2574.8,2574.6,1.1976]
[1724951133791,6.02925112,2574.8,2574.5,2.61378]
[1724951133792,0.38828,2574.5,2574.2,1.01687213]
[1724951133985,3.59608,2574.5,2574.1,2.49581213]
[1724951134291,4.49330112,2574.4,2574.1,2.49581213]
[1724951134492,5.58750112,2574.4,2574.1,2.49581213]
[1724951135182,6.75120112,2574.4,2574.1,2.49581213]
[1724951135687,7.13950112,2574.4,2574.1,2.10747213]
[1724951136276,1.53851,2574.3,2574.1,2.10747213]
[1724951136584,0.38834,2574.1,2573.9,1.01687213]
[1724951136891,4.4768998,2574.0,2573.8,8.03186213]
[1724951137076,4.4768998,2574.0,2573.8,7.64347213]
[1724951138873,0.38837,2573.9,2573.8,1.01687213]
[1724951139078,0.38837,2573.9,2573.7,4.88722422]
[1724951139079,1.50827,2573.9,2573.7,1.0227036]
[1724951139278,6.7034753,2573.9,2573.7,1.0227036]
[1724951139679,9.9112853,2573.9,2573.7,0.00583147]
[1724951139879,1.1757,2573.8,2573.7,0.00583147]
[1724951140187,0.38838,2573.9,2573.7,0.00583147]
[1724951140375,5.88384,2574.2,2573.7,3.36583147]
[1724951140578,5.88384,2574.2,2573.9,0.38837]
[1724951140579,5.4955,2574.2,2573.9,0.38837]
[1724951140787,4.34728686,2574.1,2574.0,0.38836]
[1724951140986,4.34728686,2574.1,2574.0,3.81006]
[1724951143988,4.34728686,2574.1,2574.0,2.3243]
[1724951143989,4.73562686,2574.1,2574.0,2.3243]
[1724951144294,4.34728686,2574.1,2574.0,1.1889]
[1724951144485,4.73562686,2574.1,2573.9,3.74837]
[1724951144687,5.53188686,2574.1,2573.9,3.74837]
[1724951145987,4.34728686,2574.1,2574.0,0.38836]
[1724951149589,4.34728686,2574.1,2573.9,3.36]
[1724951149590,4.73563686,2574.1,2573.9,3.74837]
[1724951149798,0.97091,2574.0,2573.8,1.01687213]